Cogmind - Beta 10.1 @@@ ROGUE MODE // 2020.10.19 @ 22:55:03 Player: Cracklepappy Result: Self-destructed Performance ------------- Evolutions (4) 2000 Regions Visited (15) 3000 Robots Destroyed (280) 1400 Value Destroyed (9118) 9118 Prototype IDs (38) 760 Alien Tech Used (0) 0 Bonus (4882) 4882 TOTAL SCORE: 21160 Bonus ------- High Alert Combat Kills 1884 Entered Garrisons 800 Used RIF Installer 2000 Aligned with FarCom 300 Friendly Fire -102 Cogmind --------- Core Integrity 506/850 Matter 240/300 Energy 3/100 System Corruption 0% Temperature Cool (0) Movement Flying (99) Ox1 Location -6/Factory Parts ------- > --- POWER (2) -------- (None) > --- PROPULSION (3) --- Improved Flight Unit Cooled VTOL Module > --- UTILITY (8) ------ Experimental Heat Sink Large Storage Unit Gravity Neutralizing Apparatus Gravity Neutralizing Apparatus Advanced Signal Interpreter Improved Transmission Jammer System Shield Relay Coupler [NC] (26) > --- WEAPON (2) ------- Great Axe > --- INVENTORY (10) --- VTOL Module Advanced Energy Well (616) High-capacity Matter Pod (0) Advanced ECM Suite Relay Coupler [NC] (24) Improved Field Recycling Unit (0) Plasma Cannon 8R-AWN's Boregun AD-0RF's Magmablaster Peak State ------------ > --- POWER ------------ Micro Nuclear Core Fission Core > --- PROPULSION ------- Improved Flight Unit Xenon Bombardment Thruster Cooled VTOL Module > --- UTILITY ---------- Experimental Heat Sink Large Storage Unit Advanced Weight Redist. System Gravity Neutralizing Apparatus Gravity Neutralizing Apparatus Advanced Signal Interpreter Improved Transmission Jammer Relay Coupler [NC] > --- WEAPON ----------- Gauss Rifle Great Axe > --- INVENTORY -------- VTOL Module Advanced Energy Well High-capacity Matter Pod Relay Coupler [NC] Improved Field Recycling Unit Long-range Proton Cannon Plasma Cannon 8R-AWN's Boregun Remote Datajack AD-0RF's Magmablaster [Rating: 65] Favorites ----------- Power Light Nuclear Core Engine Ion Engine Power Core Light Nuclear Core Propulsion Light Treads Treads Light Treads Wheel Armored Huge Wheel Flight Unit Improved Flight Unit Utility High-capacity Storage Unit Device Advanced Heat Sink Storage High-capacity Storage Unit Processor Advanced Signal Interpreter Hackware System Shield Protection Insulated Plating Weapon Heavy Assault Rifle Energy Gun Medium Laser Energy Cannon Long-range Proton Cannon Ballistic Gun Heavy Assault Rifle Ballistic Cannon Gauss Cannon Launcher Grenade Launcher Special Weapon Remote Datajack Impact Weapon Heavy Mace Slashing Weapon Great Axe Piercing Weapon Spear Build | -11 -10 -10 -9 -9 -9 -8 -8 -8 -8 -8 -7 -7 -7 -7 -6 ------- Run | Scr Mat Min Mat Min Exi Min Mat Gar Mat Gar Fac Gar Fac Gar Fac Slots Evolved 8 | . . . 2 . . . 2 . . . 2 . . . 2 Power 1 | . . . . . . . . . . . . . . . 1 Propulsion 1 | . . . . . . . . . . . 1 . . . . Utility 6 | . . . 2 . . . 2 . . . 1 . . . 1 Weapon . | . . . . . . . . . . . . . . . . Parts Attached 238 | 8 11 9 34 . 17 9 15 13 21 20 41 9 1 18 12 Power 23 | 1 1 . 4 . . . 2 1 5 2 3 1 . 1 2 Engine 15 | 1 1 . 4 . . . 2 1 4 1 . 1 . . . Core 8 | . . . . . . . . . 1 1 3 . . 1 2 Reactor . | . . . . . . . . . . . . . . . . Propulsion 44 | 3 2 2 7 . . 2 1 3 6 2 8 3 . 4 1 Treads 35 | 1 2 2 7 . . 2 1 3 6 2 6 3 . . . Leg . | . . . . . . . . . . . . . . . . Wheel 3 | 2 . . . . . . . . . . 1 . . . . Hover . | . . . . . . . . . . . . . . . . Flight 6 | . . . . . . . . . . . 1 . . 4 1 Utility 71 | 1 4 . 4 . 12 3 5 3 5 5 12 2 1 7 7 Device 15 | . . . . . 2 . 1 . . . 2 1 . 3 6 Storage 20 | 1 4 . 1 . 5 1 2 2 . . 3 . 1 . . Processor 1 | . . . . . . . . . . . . . . 1 . Hackware 5 | . . . . . . . . . . . 1 . . 3 1 Protection 30 | . . . 3 . 5 2 2 1 5 5 6 1 . . . Artifact . | . . . . . . . . . . . . . . . . Weapon 100 | 3 4 7 19 . 5 4 7 6 5 11 18 3 . 6 2 Energy Gun 2 | 2 . . . . . . . . . . . . . . . Energy Cannon 1 | . . . . . . . . . . . . . . . 1 Ballistic Gun 63 | 1 3 4 13 . 5 2 4 3 5 6 11 2 . 4 . Ballistic Cannon 1 | . . . . . . . . . . . . 1 . . . Launcher 23 | . 1 3 5 . . 1 3 2 . 4 3 . . 1 . Special Weapon 3 | . . . . . . 1 . . . . 1 . . . 1 Impact Weapon 3 | . . . 1 . . . . 1 . . 1 . . . . Slashing Weapon 3 | . . . . . . . . . . 1 1 . . 1 . Piercing Weapon 1 | . . . . . . . . . . . 1 . . . . Special Melee Weapon . | . . . . . . . . . . . . . . . . Unidentified Prototypes 6 | . . . . . 2 2 . . . . 1 . . 1 . Parts Lost 73 | . 3 1 9 . 3 1 4 7 6 6 9 9 . 8 7 Power 12 | . 1 . 2 . . . 1 1 2 . 1 1 . 1 2 Propulsion 20 | . 1 . 3 . . . 1 2 2 1 3 2 . 3 2 Utility 17 | . . . 1 . 2 . 2 1 1 2 3 3 . 2 . Weapon 24 | . 1 1 3 . 1 1 . 3 1 3 2 3 . 2 3 Highest Loss Streak 7 | . 2 1 5 . 3 1 2 3 2 3 2 7 . 5 5 Average Slot Usage (%) 93 | . 98 99 98 100 91 88 84 86 98 98 92 75 84 82 97 Engine 7 | . 14 14 10 11 11 11 9 6 6 8 . 4 7 4 . Core 2 | . . . . . . . . . 2 . 6 1 . 1 12 Treads 19 | . 22 28 21 22 22 22 17 17 18 18 19 8 23 15 . Device 2 | . . . . . . . 1 2 . . 2 4 7 8 27 Storage 29 | . 27 28 32 33 25 23 25 34 36 36 30 30 30 25 6 Hackware 1 | . . . . . . . . . . . 5 . . 3 9 Protection 8 | . . . 10 11 10 9 12 8 16 17 9 1 . . . Ballistic Gun 16 | . 26 19 20 22 22 22 17 16 18 15 13 9 7 7 3 Naked Turns . | . . . . . . . . . . . . . . . . Heaviest Build 190 | 12 73 74 115 113 158 158 166 190 148 148 162 147 166 134 41 Greatest Support 71 | 20 40 40 46 46 46 46 46 43 43 40 71 60 60 60 42 Greatest Overweight (x) 40 | 1 7 1 4 2 3 3 3 4 3 3 5 6 2 40 . Average Overweight (x) 2 | . 2 1 1 2 2 2 2 3 2 3 2 5 2 1 . Largest Inventory Capacity 54 | 6 20 20 28 28 44 40 40 54 34 34 36 34 42 34 10 Average Capacity 30 | 5 18 20 27 28 30 33 38 35 34 34 35 34 34 29 10 Most Carried 40 | 6 20 20 28 28 36 36 40 40 34 34 36 34 34 34 10 Average Carried 29 | 4 17 19 26 28 25 31 35 34 33 33 34 33 32 28 9 Final Capacity 40 | 6 20 20 28 28 40 32 40 34 34 34 34 34 34 10 10 Final Carried 40 | 6 20 20 28 28 36 32 40 34 34 34 33 31 34 10 9 Class Distribution -------------------- 93% | Hauler-Mutant Dominant Class ---------------- Hauler-Mutant | -10/Materials Hauler-Mutant | -10/Mines Hauler-Mutant | -9/Materials Hauler-Mutant | -9/Mines Hauler-Mutant | -9/Exiles Hauler-Mutant | -8/Mines Hauler-Mutant | -8/Materials Hauler-Mutant | -8/Garrison Hauler-Mutant | -8/Materials Hauler-Mutant | -8/Garrison Hauler-Mutant | -7/Factory Hauler-Mutant | -7/Garrison Hauler-Mutant | -7/Factory Hauler-Mutant | -7/Garrison Sprinter | -6/Factory Resources | -11 -10 -10 -9 -9 -9 -8 -8 -8 -8 -8 -7 -7 -7 -7 -6 ----------- Run | Scr Mat Min Mat Min Exi Min Mat Gar Mat Gar Fac Gar Fac Gar Fac Matter Collected 9142 | 293 388 443 1292 . 658 306 466 545 1086 516 1671 951 . 245 282 Remotely . | . . . . . . . . . . . . . . . . Salvage Created 9405 | 161 597 182 1453 . 108 134 652 545 1503 762 2104 776 . 174 254 Parts 587 | 9 45 18 117 . 5 8 63 25 94 35 114 32 . 8 14 Haulers Intercepted 9 | . 2 . 4 . . . . . 1 . 1 . . . 1 Recyclers Shooed 5 | . . 1 . . . . 1 . 1 . 2 . . . . Parts Field Recycled . | . . . . . . . . . . . . . . . . Retrieved Matter . | . . . . . . . . . . . . . . . . Parts Self-Destructed . | . . . . . . . . . . . . . . . . Prevented . | . . . . . . . . . . . . . . . . Kills | -11 -10 -10 -9 -9 -9 -8 -8 -8 -8 -8 -7 -7 -7 -7 -6 ------- Run | Scr Mat Min Mat Min Exi Min Mat Gar Mat Gar Fac Gar Fac Gar Fac Combat Hostiles Destroyed 222 | . 15 10 33 . 1 4 24 15 27 22 40 18 . 8 5 Melee 9 | . . . . . . . . . . . 4 . . . 5 Guns 142 | . 12 3 20 . 1 3 9 14 27 11 26 13 . 3 . Cannons 10 | . . . . . . . . . . . . 5 . 5 . AOE 61 | . 3 7 13 . . 1 15 1 . 11 10 . . . . Classes Destroyed 17 | 2 4 1 6 . . 1 1 . . . 1 1 . . . Worker 8 | . . . 3 . . . 1 . 1 . 3 . . . . Builder 10 | . . . 3 . . . 3 . 1 . 3 . . . . Tunneler 5 | 3 . . . . . . 1 . . . 1 . . . . Hauler 9 | . 2 . 4 . . . . . 1 . 1 . . . 1 Recycler 8 | 1 1 2 . . . . . . 2 . 2 . . . . Mechanic 3 | . . . 1 . . . . . . . 2 . . . . Operator 2 | . . . 1 . . . 1 . . . . . . . . Watcher 13 | . 2 . 5 . . . 2 . 3 . 1 . . . . Swarmer 65 | . 6 9 7 . . 1 10 3 6 4 4 4 . 7 4 Grunt 99 | . 9 . 17 . . 2 7 9 11 6 28 9 . 1 . Brawler 5 | . . . . . . 1 . . . 4 . . . . . Duelist 13 | . . . 1 . . . 1 1 2 5 3 . . . . Sentry 27 | . . . 8 . . . 5 1 7 3 . 2 . . 1 Specialist 2 | . . . . . . . . . . . . 2 . . . Hunter 6 | . . . . . . . 1 1 1 . 2 1 . . . Programmer 3 | . . . . . . . . . . . 3 . . . . Assembled 1 | . . 1 . . . . . . . . . . . . . Best Kill Streak 18 | 3 3 4 18 . 1 2 11 3 6 5 12 8 . 3 4 Combat Bots Only 10 | . 3 3 10 . 1 2 6 3 4 5 7 8 . 3 4 Max Kills in Single Turn 5 | 1 1 3 3 . 1 1 4 1 2 2 5 2 . 1 1 Gunslinging 1 | . . . . . . . . . . . . 1 . . . Exploded 3 | . 1 3 2 . . 1 2 1 . 2 2 . . . . Melee 1 | . . . . . . . . . . . 1 . . . 1 Uniques/NPCs Destroyed 1 | . . . . . 1 . . . . . . . . . . 8R-AWN (-9/Exiles) Combat | -11 -10 -10 -9 -9 -9 -8 -8 -8 -8 -8 -7 -7 -7 -7 -6 -------- Run | Scr Mat Min Mat Min Exi Min Mat Gar Mat Gar Fac Gar Fac Gar Fac Damage Taken 17169 | . 637 462 2079 . 1057 352 1073 1250 2175 960 3674 1390 . 1050 1010 Core 1879 | . 51 95 140 . 121 89 70 111 147 85 249 139 . 238 344 Absorbed by Shields 148 | . . . . . . . . 61 . . . 26 . 61 . Core Remaining (%) 37 | 100 . 41 . . . 12 . . . 24 . . . 10 . Volleys Fired 773 | 13 63 16 146 . 29 13 54 61 111 39 152 40 2 34 . Largest 2 | 2 2 2 2 . 2 2 2 2 2 2 2 2 2 2 . Hottest 76 | 70 70 50 50 . 50 55 50 53 53 59 56 76 76 76 . Shots Fired 1455 | 26 119 26 280 . 58 26 91 114 222 67 289 76 4 57 . Gun 1329 | 26 112 18 259 . 58 25 74 111 222 55 272 59 2 36 . Cannon 40 | . . . . . . . . . . . . 17 2 21 . Launcher 84 | . 7 8 21 . . 1 17 3 . 12 15 . . . . Special 2 | . . . . . . . . . . . 2 . . . . Kinetic 1348 | 13 104 18 259 . 58 25 74 111 222 55 272 76 4 57 . Thermal 21 | 13 8 . . . . . . . . . . . . . . Explosive 84 | . 7 8 21 . . 1 17 3 . 12 15 . . . . Electromagnetic . | . . . . . . . . . . . . . . . . Robot Hit Streak 27 | 6 15 5 12 . 11 5 10 12 27 8 14 10 1 5 . Robot Miss Streak 13 | 2 2 3 5 . 2 8 4 2 4 4 6 5 3 13 . Penetration Max 1 | . . . . . . . . . 1 1 1 . . . . Secondary Targets 14 | . . . 1 . . . . 3 2 2 3 2 . 1 . Max Gunslinging Chain 1 | . . . 1 . . . . 1 1 1 1 1 . 1 . Shots Hit Robots 1045 | 15 90 11 186 . 43 10 51 83 169 47 217 65 1 38 19 Core Hits 580 | 5 33 13 93 . 12 6 55 31 69 39 133 64 . 20 7 Critical Hits 21 | . . . 3 . . . 1 . 5 1 6 2 . 1 2 Critical Kills 7 | . . . . . . . . . 3 1 1 2 . . . Critical Parts Destroyed 14 | . . . 3 . . . 1 . 2 . 5 . . 1 2 Melee Attacks 52 | . . . 1 . . . . 1 . 1 15 . . . 34 Impact 4 | . . . 1 . . . . 1 . . 2 . . . . Slashing 40 | . . . . . . . . . . 1 5 . . . 34 Piercing 8 | . . . . . . . . . . . 8 . . . . Sneak Attacks 3 | . . . . . . . . . . . 1 . . . 2 Combat Hostiles 2 | . . . . . . . . . . . 1 . . . 1 Follow-up Attacks . | . . . . . . . . . . . . . . . . Damage Inflicted 24515 | 185 1362 481 3650 . 713 271 2592 1455 2998 1905 6057 1248 21 618 959 Guns 15074 | 185 910 89 2278 . 713 152 735 1215 2992 777 3685 1001 21 321 . Cannons 544 | . . . . . . . . . . . . 247 . 297 . Explosions 7486 | . 443 385 1334 . . 119 1857 240 . 1128 1980 . . . . Melee 1335 | . . . . . . . . . . . 376 . . . 959 Ramming 76 | . 9 7 38 . . . . . 6 . 16 . . . . Kinetic 15432 | 49 860 89 2278 . 713 152 735 1215 2992 777 3685 1248 21 618 . Thermal 186 | 136 50 . . . . . . . . . . . . . . Explosive 7486 | . 443 385 1334 . . 119 1857 240 . 1128 1980 . . . . Electromagnetic . | . . . . . . . . . . . . . . . . Impact . | . . . . . . . . . . . . . . . . Slashing 1114 | . . . . . . . . . . . 155 . . . 959 Piercing 221 | . . . . . . . . . . . 221 . . . . Highest Corruption 9 | . . . . . . . . . . . 9 9 9 9 . Average Corruption 6 | . . . . . . . . . . . 5 9 9 9 . Corruption Purged . | . . . . . . . . . . . . . . . . Effects 140 | . . . . . . . . . . . 66 36 8 30 . Message Errors 25 | . . . . . . . . . . . 12 6 4 3 . Matter Fused 20 | . . . . . . . . . . . 12 6 . 2 . Heat Flow Errors 10 | . . . . . . . . . . . 5 2 . 3 . Energy Discharges 13 | . . . . . . . . . . . 5 4 . 4 . Data Loss (minor) 20 | . . . . . . . . . . . 10 3 3 4 . Data Loss (major) 3 | . . . . . . . . . . . 3 . . . . Misfires 5 | . . . . . . . . . . . 3 . . 2 . Targeting Errors 38 | . . . . . . . . . . . 15 13 1 9 . Weapon Failures 6 | . . . . . . . . . . . 1 2 . 3 . Overload Shots . | . . . . . . . . . . . . . . . . Overflow Damage 424 | . 39 9 81 . . 1 77 . . 44 147 . . 19 7 Projectiles 19 | . . . . . . . . . . . . . . 19 . Explosions 336 | . 39 9 81 . . 1 77 . . 44 85 . . . . Melee 69 | . . . . . . . . . . . 62 . . . 7 Knockbacks 6 | . . . 1 . . . . . . . . 2 . 3 . Impact 1 | . . . 1 . . . . . . . . . . . . Kinetic 5 | . . . . . . . . . . . . 2 . 3 . Secondary . | . . . . . . . . . . . . . . . . Self-Inflicted Damage 1002 | . 49 156 150 . . 48 213 46 . 150 190 . . . . Shots 36 | . 3 7 7 . . 1 7 2 . 4 5 . . . . Rammed 10 | . 1 1 4 . . . . . 1 . 3 . . . . Targets Rammed 10 | . 1 1 4 . . . . . 1 . 3 . . . . Kicked . | . . . . . . . . . . . . . . . . Crushed . | . . . . . . . . . . . . . . . . Highest Temperature 308 | 80 100 19 33 . 289 64 90 117 197 211 308 214 . 135 1 Average Temperature 55 | 30 26 16 8 . 167 24 24 50 34 48 79 104 . 66 1 Received Heat Transfer 4731 | . 270 . 828 . . 183 234 408 765 288 1266 402 . 45 42 Effects 4 | . . . . . 3 . . . . . 1 . . . . Energy Bleed 2 | . . . . . 1 . . . . . 1 . . . . Interference 2 | . . . . . 2 . . . . . . . . . . Siege Activations . | . . . . . . . . . . . . . . . . Robots Corrupted . | . . . . . . . . . . . . . . . . Combat Hostiles . | . . . . . . . . . . . . . . . . Parts Fried . | . . . . . . . . . . . . . . . . Impact Corruptions . | . . . . . . . . . . . . . . . . Robots Melted . | . . . . . . . . . . . . . . . . Combat Hostiles . | . . . . . . . . . . . . . . . . Parts Melted 1 | 1 . . . . . . . . . . . . . . . Heat Transferred 555 | 407 148 . . . . . . . . . . . . . . Parts Sabotaged . | . . . . . . . . . . . . . . . . Parts Stolen . | . . . . . . . . . . . . . . . . Parts Stripped . | . . . . . . . . . . . . . . . . Power Chain Reactions . | . . . . . . . . . . . . . . . . Missiles Intercepted . | . . . . . . . . . . . . . . . . Alert | -11 -10 -10 -9 -9 -9 -8 -8 -8 -8 -8 -7 -7 -7 -7 -6 ------- Run | Scr Mat Min Mat Min Exi Min Mat Gar Mat Gar Fac Gar Fac Gar Fac Peak Influence 972 | 20 399 339 445 2 . 103 584 951 757 947 918 972 527 508 336 Initial 642 | . 13 59 . 2 . . 35 304 463 464 497 642 510 368 256 Average 430 | 8 199 142 174 2 . 74 271 649 577 685 552 860 519 419 211 Maximum Alert Level 3 | . 1 1 2 . . . 2 3 3 3 3 3 2 2 1 Low Security (%) 25 | 100 68 83 58 100 . 100 31 . . . . . . . 41 Level 1 15 | . 31 16 32 . . . 33 1 . . 7 . . 47 58 Level 2 43 | . . . 9 . . . 34 57 91 65 76 5 100 52 . Level 3 15 | . . . . . . . . 41 8 34 15 94 . . . Level 4 . | . . . . . . . . . . . . . . . . Level 5 . | . . . . . . . . . . . . . . . . High Security . | . . . . . . . . . . . . . . . . Max Security . | . . . . . . . . . . . . . . . . Squads Dispatched 35 | . 3 . 4 . . . 3 . 7 . 17 . . . 1 Investigation 6 | . 3 . . . . . . . . . 2 . . . 1 Extermination 5 | . . . . . . . . . . . 5 . . . . Reinforcement 14 | . . . 4 . . . 3 . 3 . 4 . . . . Assault 4 | . . . . . . . . . 1 . 3 . . . . Garrison 6 | . . . . . . . . . 3 . 3 . . . . Intercept . | . . . . . . . . . . . . . . . . Construction Impeded 5 | . . . 2 . . . . . . . 3 . . . . Haulers Reinforced . | . . . . . . . . . . . . . . . . Stealth | -11 -10 -10 -9 -9 -9 -8 -8 -8 -8 -8 -7 -7 -7 -7 -6 --------- Run | Scr Mat Min Mat Min Exi Min Mat Gar Mat Gar Fac Gar Fac Gar Fac Distress Signals 16 | . 1 . 4 . . . 4 . 5 . 2 . . . . Communications Jammed . | . . . . . . . . . . . . . . . . Distress Signals . | . . . . . . . . . . . . . . . . Times Spotted 359 | . 24 30 51 . 1 14 35 17 48 21 78 18 1 13 8 Peak Tracking Total 17 | . 4 17 10 . 2 6 10 3 5 6 8 5 1 5 4 Tactical Retreats 25 | . 1 1 2 . . 3 2 2 3 1 7 . . 3 . Traps | -11 -10 -10 -9 -9 -9 -8 -8 -8 -8 -8 -7 -7 -7 -7 -6 ------- Run | Scr Mat Min Mat Min Exi Min Mat Gar Mat Gar Fac Gar Fac Gar Fac Traps Triggered 18 | . 1 . . . . . . 1 . 5 . 6 . 5 . Indirectly . | . . . . . . . . . . . . . . . . Trap Hack Attempts . | . . . . . . . . . . . . . . . . Triggered . | . . . . . . . . . . . . . . . . Disarmed . | . . . . . . . . . . . . . . . . Reprogrammed . | . . . . . . . . . . . . . . . . Reused 2 | . . . . . . 2 . . . . . . . . . Traps Extracted . | . . . . . . . . . . . . . . . . Installed 3 | . . . . . 1 2 . . . . . . . . . Triggered . | . . . . . . . . . . . . . . . . Machines | -11 -10 -10 -9 -9 -9 -8 -8 -8 -8 -8 -7 -7 -7 -7 -6 ---------- Run | Scr Mat Min Mat Min Exi Min Mat Gar Mat Gar Fac Gar Fac Gar Fac Machines Disabled 20 | . 1 3 5 . . . 3 1 1 1 5 . . . . Max in Single Turn 3 | . 1 3 1 . . . 1 1 1 1 2 . . . . Garrison Relay 2 | . . . . . . . . 1 . 1 . . . . . Machines Sabotaged . | . . . . . . . . . . . . . . . . Garrisons Compromised . | . . . . . . . . . . . . . . . . Overloaded Fab Kills . | . . . . . . . . . . . . . . . . Fab Network Shutdowns . | . . . . . . . . . . . . . . . . Hacking | -11 -10 -10 -9 -9 -9 -8 -8 -8 -8 -8 -7 -7 -7 -7 -6 --------- Run | Scr Mat Min Mat Min Exi Min Mat Gar Mat Gar Fac Gar Fac Gar Fac Machines Accessed 43 | . 9 . 8 . 2 . 2 . 3 . 12 . 1 . 6 Terminals 26 | . 7 . 7 . . . 1 . 2 . 5 . . . 4 Fabricators 2 | . . . . . . . . . . . 2 . . . . Repair Stations 1 | . . . . . . . . . . . 1 . . . . Recycling Units 2 | . 2 . . . . . . . . . . . . . . Scanalyzers 4 | . . . 1 . . . . . . . 2 . . . 1 Garrison Access 6 | . . . . . . . 1 . 1 . 2 . 1 . 1 Total Hacks 121 | . 21 . 30 . 3 . 7 . 8 . 38 . 1 . 13 Successful 66 | . 7 . 16 . 3 . 4 . 4 . 23 . 1 . 8 Failed 55 | . 14 . 14 . . . 3 . 4 . 15 . . . 5 Catastrophic 11 | . 4 . 3 . . . 1 . 1 . 1 . . . 1 Database Lockouts . | . . . . . . . . . . . . . . . . Manual 65 | . 13 . 22 . 1 . 4 . 6 . 12 . . . 7 Terminals 82 | . 18 . 28 . . . 6 . 7 . 14 . . . 9 Fabricators 8 | . . . . . . . . . . . 8 . . . . Repair Stations 2 | . . . . . . . . . . . 2 . . . . Recycling Units 3 | . 3 . . . . . . . . . . . . . . Scanalyzers 13 | . . . 2 . . . . . . . 9 . . . 2 Garrison Access 10 | . . . . . . . 1 . 1 . 5 . 1 . 2 Terminal Hacks 30 | . 5 . 11 . 3 . 2 . 3 . 3 . . . 3 Record 2 | . . . . . 2 . . . . . . . . . . Part Schematic 4 | . 1 . 2 . . . . . . . . . . . 1 Robot Analysis 2 | . 1 . 1 . . . . . . . . . . . . Prototype ID Bank 5 | . 2 . 2 . . . . . . . 1 . . . . Branch Access Points 3 | . . . 1 . . . . . 1 . 1 . . . . Terminal Index 1 | . . . . . . . 1 . . . . . . . . Unreport Threat 6 | . . . 4 . . . . . . . 1 . . . 1 Locate Traps 1 | . . . . . . . . . . . . . . . 1 Recall Reinforcements 1 | . . . . . . . . . 1 . . . . . . Hauler Manifests 1 | . . . 1 . . . . . . . . . . . . Zone Layout 3 | . 1 . . . . . 1 . 1 . . . . . . EX-Prototype ID Bank 1 | . . . . . 1 . . . . . . . . . . Fabricator Hacks 3 | . . . . . . . . . . . 3 . . . . Load Schematic 1 | . . . . . . . . . . . 1 . . . . Build 2 | . . . . . . . . . . . 2 . . . . Repair Station Hacks 2 | . . . . . . . . . . . 2 . . . . Scan Component 1 | . . . . . . . . . . . 1 . . . . Repair 1 | . . . . . . . . . . . 1 . . . . Recycling Unit Hacks . | . . . . . . . . . . . . . . . . Scanalyzer 10 | . . . 2 . . . . . . . 7 . . . 1 Insert Component 5 | . . . 1 . . . . . . . 3 . . . 1 Analyze 5 | . . . 1 . . . . . . . 4 . . . . Garrison Access Hacks 5 | . . . . . . . 1 . 1 . 2 . 1 . . Unlock Access 4 | . . . . . . . 1 . 1 . 1 . 1 . . Coupler Status 1 | . . . . . . . . . . . 1 . . . . Unauthorized Hacks 16 | . 2 . 3 . . . 1 . . . 6 . . . 4 Terminals 10 | . . . 3 . . . 1 . . . 3 . . . 3 Botnet 8 | . . . 2 . . . 1 . . . 3 . . . 2 Operators 2 | . . . 1 . . . . . . . . . . . 1 Fabricators . | . . . . . . . . . . . . . . . . Repair Stations . | . . . . . . . . . . . . . . . . Recycling Units 2 | . 2 . . . . . . . . . . . . . . Tunnel 2 | . 2 . . . . . . . . . . . . . . Scanalyzers . | . . . . . . . . . . . . . . . . Garrison Access 4 | . . . . . . . . . . . 3 . . . 1 Broadcast 1 | . . . . . . . . . . . 1 . . . . Redirect 1 | . . . . . . . . . . . 1 . . . . Watchers 2 | . . . . . . . . . . . 1 . . . 1 Data Cores Recovered . | . . . . . . . . . . . . . . . . Used . | . . . . . . . . . . . . . . . . Hacking Detections 38 | . 8 . 8 . . . 1 . 3 . 11 . 1 . 6 Full Trace Events 2 | . . . . . . . . . . . 1 . . . 1 Feedback Events 1 | . . . . . . . . . . . 1 . . . . Corruption 1 | . . . . . . . . . . . 1 . . . . Feedback Blocked . | . . . . . . . . . . . . . . . . Robot Schematics Acquired . | . . . . . . . . . . . . . . . . Robots Built . | . . . . . . . . . . . . . . . . Matter . | . . . . . . . . . . . . . . . . Time . | . . . . . . . . . . . . . . . . Total Robot Build Rating . | . . . . . . . . . . . . . . . . Part Schematics Acquired 8 | . 1 . 3 . . . . . . . 3 . . . 1 Parts Built 3 | . . . . . . . . . . . 3 . . . . Matter 453 | . . . . . . . . . . . 453 . . . . Time 118 | . . . . . . . . . . . 118 . . . . Total Part Build Rating 13 | . . . . . . . . . . . 13 . . . . Parts Repaired 1 | . . . . . . . . . . . 1 . . . . Time 56 | . . . . . . . . . . . 56 . . . . Parts Recycled . | . . . . . . . . . . . . . . . . Recycled Matter . | . . . . . . . . . . . . . . . . Retrieved Matter . | . . . . . . . . . . . . . . . . Retrieved Components . | . . . . . . . . . . . . . . . . Parts Scanalyzed 5 | . . . 1 . . . . . . . 3 . . . 1 Part Schematics Acquired 4 | . . . 1 . . . . . . . 3 . . . . Parts Damaged 1 | . . . . . . . . . . . 1 . . . . Bothacking | -11 -10 -10 -9 -9 -9 -8 -8 -8 -8 -8 -7 -7 -7 -7 -6 ------------ Run | Scr Mat Min Mat Min Exi Min Mat Gar Mat Gar Fac Gar Fac Gar Fac Used RIF Installer 4 | . . . . . . . . 1 . 1 . 1 . 1 . Hotswap 1 | . . . . . . . . . . . . 1 . . . Zone Cloak 1 | . . . . . . . . . . 1 . . . . . Patrol Navigation 1 | . . . . . . . . . . . . . . 1 . Robots Hacked 1 | . . . . . . . . . . . 1 . . . . Non-combat 1 | . . . . . . . . . . . 1 . . . . Combat . | . . . . . . . . . . . . . . . . Robot Hacks Applied 1 | . . . . . . . . . . . 1 . . . . find_chute 1 | . . . . . . . . . . . 1 . . . . Relay Couplers Released 7 | . . . . . . . . 3 . 4 . . . . . Machine Destruction 7 | . . . . . . . . 3 . 4 . . . . . Attached 1 | . . . . . . . . . . . . . . 1 . Robots Rewired . | . . . . . . . . . . . . . . . . Allies Hacked . | . . . . . . . . . . . . . . . . Hacks Repelled . | . . . . . . . . . . . . . . . . Allies | -11 -10 -10 -9 -9 -9 -8 -8 -8 -8 -8 -7 -7 -7 -7 -6 -------- Run | Scr Mat Min Mat Min Exi Min Mat Gar Mat Gar Fac Gar Fac Gar Fac Total Allies . | . . . . . . . . . . . . . . . . Largest Group . | . . . . . . . . . . . . . . . . Highest-Rated Group . | . . . . . . . . . . . . . . . . Highest-Rated Ally . | . . . . . . . . . . . . . . . . Total Orders . | . . . . . . . . . . . . . . . . Ally Attacks . | . . . . . . . . . . . . . . . . Total Damage . | . . . . . . . . . . . . . . . . Kills . | . . . . . . . . . . . . . . . . Allies Corrupted . | . . . . . . . . . . . . . . . . Allies Melted . | . . . . . . . . . . . . . . . . Intel | -11 -10 -10 -9 -9 -9 -8 -8 -8 -8 -8 -7 -7 -7 -7 -6 ------- Run | Scr Mat Min Mat Min Exi Min Mat Gar Mat Gar Fac Gar Fac Gar Fac Robot Analysis Total 2 | . 1 . 1 . . . . . . . . . . . . Derelict Logs Recovered 3 | . . 3 . . . . . . . . . . . . . Drone Launches . | . . . . . . . . . . . . . . . . Drone Recoveries . | . . . . . . . . . . . . . . . . Exploration | -11 -10 -10 -9 -9 -9 -8 -8 -8 -8 -8 -7 -7 -7 -7 -6 ------------- Run | Scr Mat Min Mat Min Exi Min Mat Gar Mat Gar Fac Gar Fac Gar Fac Turns Passed 17153 | 161 1082 988 2308 178 1703 203 860 1272 1674 1416 3271 710 200 547 580 Spaces Moved 7269 | 106 531 495 855 90 761 64 276 483 569 528 1273 231 94 214 699 Core 17 | 5 . . . . . . . . . . . . . 12 . Treads 5856 | 5 305 495 855 90 761 64 276 483 569 528 1051 168 94 112 . Legs . | . . . . . . . . . . . . . . . . Wheels 607 | 96 226 . . . . . . . . . 222 63 . . . Hover . | . . . . . . . . . . . . . . . . Flight 789 | . . . . . . . . . . . . . . 90 699 Fastest Speed 30 | 50 80 180 180 200 180 200 200 220 200 220 150 140 200 30 30 Average Speed 180 | 98 153 180 199 200 202 201 214 221 219 220 193 230 200 134 30 Slowest Speed 2050 | 160 220 180 240 200 220 220 220 240 220 220 260 280 200 2050 32 Overloaded Moves . | . . . . . . . . . . . . . . . . Propulsion Burnouts . | . . . . . . . . . . . . . . . . Robots Hopped 1 | . . . . . . . . . . . . . . . 1 Cave-ins Triggered . | . . . . . . . . . . . . . . . . Exploration Rate (%) 44 | 4 77 95 82 22 70 14 30 60 55 60 34 38 3 40 23 Regions Visited 15 Branch Regions 4 Pre-discovered Areas 5 | . 2 2 . . 1 . . . . . . . . . . Known Exits Taken 6 | . . . 1 . . 1 1 . 1 . 1 . 1 . . Unknown Exits Taken 5 | 1 1 1 . 1 1 . . . . . . . . . . Scrap Searched 1 | . . 1 . . . . . . . . . . . . . Spaces Dug 50 | . . 6 1 . . . 34 . . 3 2 . . . 4 Terrain Destroyed 426 | . 39 45 116 . . 13 83 21 1 63 38 1 2 . 4 Melee 7 | . . . 1 . . . . . . . 2 . . . 4 Projectile 5 | . . . . . . . . . 1 1 . 1 2 . . AOE 414 | . 39 45 115 . . 13 83 21 . 62 36 . . . . Terrain Rammed . | . . . . . . . . . . . . . . . . Walls Destroyed . | . . . . . . . . . . . . . . . . Machines Disabled . | . . . . . . . . . . . . . . . . Actions | -11 -10 -10 -9 -9 -9 -8 -8 -8 -8 -8 -7 -7 -7 -7 -6 --------- Run | Scr Mat Min Mat Min Exi Min Mat Gar Mat Gar Fac Gar Fac Gar Fac Total 9846 | 135 688 567 1176 89 891 120 468 575 788 715 1768 332 102 423 1009 Wait 1054 | . 49 32 78 . 25 17 99 7 45 102 231 11 . 113 245 Move 7253 | 105 530 494 854 89 760 63 275 481 569 527 1273 229 94 213 697 Hop 1 | . . . . . . . . . . . . . . . 1 Pick Up 213 | 8 23 7 34 . 30 4 18 8 20 9 28 7 3 5 9 Fast Attach 49 | 5 3 . 5 . 6 2 1 . 5 5 6 2 1 . 8 Attach 90 | 1 3 1 10 . 7 2 7 10 7 5 13 7 . 14 3 Detach 4 | . . . . . 2 1 . . . . . . 1 . . Swap 99 | 2 5 8 19 . 4 5 7 3 9 10 22 . . 4 1 Drop 184 | 1 11 8 25 . 27 11 7 4 21 9 25 2 1 21 11 Fire 773 | 13 63 16 146 . 29 13 54 61 111 39 152 40 2 34 . Melee 52 | . . . 1 . . . . 1 . 1 15 . . . 34 Ram . | . . . . . . . . . . . . . . . . Kick . | . . . . . . . . . . . . . . . . Crush 10 | . 1 1 4 . . . . . 1 . 3 . . . . Escape Stasis 61 | . . . . . . . . . . 8 . 34 . 19 . Rewire . | . . . . . . . . . . . . . . . . Trap 3 | . . . . . 1 2 . . . . . . . . . Miscellaneous . | . . . . . . . . . . . . . . . . Route ------- -11/Scrapyard -10/Materials (discovered 3 exits: *Mat x2 / [*Min]) -10/Mines (discovered 2 exits: *Mat x2) -9/Materials (discovered 5 exits: *Mat x3 / *Min x2) -9/Mines -9/Exiles -8/Mines -8/Materials (discovered 2 exits: *Fac / Gar) -8/Garrison (discovered 3 exits: *Mat x3) -8/Materials (discovered 2 exits: *Fac / Gar) -8/Garrison (discovered 3 exits: *Fac x3) -7/Factory (discovered 5 exits: Sto x2 / Low x2 / Gar) -7/Garrison -7/Factory -7/Garrison -6/Factory History --------- Turn | Location | Event 10 | -11/Scrapyard | Discovered new exit (range 15) 162 | -11/Scrapyard | Entered Materials 311 | -10/Materials | Build established: Mutant 440 | -10/Materials | Discovered new exit (range 15) 743 | -10/Materials | Build established: Hauler-Mutant 816 | -10/Materials | Discovered new exit (range 13) 1076 | -10/Materials | Discovered new exit (range 13) 1244 | -10/Materials | Entered Mines 1261 | -10/Mines | Learned location of Storage (-7) 1266 | -10/Mines | Learned Materials emergency access door positions 1314 | -10/Mines | Learned 2 Materials zone layouts 1318 | -10/Mines | Discovered new exit (range 10) 1370 | -10/Mines | Found a hidden stash of uninstalled traps 1623 | -10/Mines | Discovered new exit (range 15) 1746 | -10/Mines | Assembled infested the area 1826 | -10/Mines | Core integrity fell below 50% 2012 | -10/Mines | Joined a pair of Derelicts in attacking an 0b10 outpost 2232 | -10/Mines | Entered Materials 2232 | -9/Materials | Evolved 2 slots: Utility x2 2233 | -9/Materials | Identified exit to Materials 2458 | -9/Materials | Destroyed 10 combat bots 2516 | -9/Materials | Lost 5 parts (1p2n2w) 4028 | -9/Materials | Discovered exit to Materials (range 5) 4260 | -9/Materials | Discovered exit to Materials (range 11) 4418 | -9/Materials | Identified exit to Mines 4540 | -9/Materials | Entered Mines 4710 | -9/Mines | Deemed a non-threat by the Exiles lab entrance 4710 | -9/Mines | Discovered new exit (range 5) 4718 | -9/Mines | Entered Exiles 4764 | -9/Exiles | Met 8R-AWN 4798 | -9/Exiles | Met EX-HEX 4910 | -9/Exiles | Met EX-DEC 4948 | -9/Exiles | Learned location of Zion (-6) 5052 | -9/Exiles | Discovered new exit (range 14) 5889 | -9/Exiles | Met EX-BIN 5917 | -9/Exiles | Aligned with FarCom system 5919 | -9/Exiles | Given EX-Vault access code 5967 | -9/Exiles | Opened EX-Vault 6011 | -9/Exiles | Warned to stay clear of 0b10 Research branches 6048 | -9/Exiles | Exiles lab attacked by MAIN.C 6216 | -9/Exiles | Attacked by the Exiles 6255 | -9/Exiles | Core integrity fell below 50% 6320 | -9/Exiles | Destroyed 8R-AWN 6333 | -9/Exiles | Found Prototype Ballistic Gun 6345 | -9/Exiles | Lost 3 parts (2u1w) 6345 | -9/Exiles | Found Prototype Processor 6421 | -9/Exiles | Entered Mines 6485 | -8/Mines | AD-0RF came to Exiles' defense 6494 | -8/Mines | Core integrity fell below 20% 6524 | -8/Mines | Found Prototype Special Weapon 6527 | -8/Mines | Identified AD-0RF's Magmablaster 6602 | -8/Mines | Discovered exit to Materials (range 12) 6624 | -8/Mines | Entered Materials 6624 | -8/Materials | Evolved 2 slots: Utility x2 7323 | -8/Materials | Discovered new exit (range 9) 7482 | -8/Materials | Identified exit to Garrison 7484 | -8/Materials | Entered Garrison 7588 | -8/Garrison | Triggered checkpoint 7839 | -8/Garrison | Discovered new exit (range 12) 7993 | -8/Garrison | Triggered checkpoint 8035 | -8/Garrison | Lost 3 parts (1p1n1w) 8208 | -8/Garrison | Triggered checkpoint 8254 | -8/Garrison | Discovered new exit (range 15) 8372 | -8/Garrison | Triggered checkpoint 8489 | -8/Garrison | Discovered new exit (range 13) 8527 | -8/Garrison | Installed Relay Interface Framework 8604 | -8/Garrison | Triggered checkpoint 8660 | -8/Garrison | Garrison Relay disabled 8756 | -8/Garrison | Entered Materials 9556 | -8/Materials | First assault squad dispatched 9858 | -8/Materials | Discovered new exit (range 6) 10221 | -8/Materials | Core integrity fell below 50% 10223 | -8/Materials | Garrison activated, responded to threat 10430 | -8/Materials | Identified exit to Garrison 10430 | -8/Materials | Entered Garrison 10520 | -8/Garrison | Triggered checkpoint 10723 | -8/Garrison | Lost 3 parts (1u2w) 10897 | -8/Garrison | Discovered new exit (range 14) 10940 | -8/Garrison | Lost 3 parts (1n1u1w) 11395 | -8/Garrison | Discovered new exit (range 12) 11562 | -8/Garrison | Triggered checkpoint 11637 | -8/Garrison | Discovered new exit (range 8) 11665 | -8/Garrison | Expanded RIF knowledge: Zone Cloak 11710 | -8/Garrison | Triggered checkpoint 11787 | -8/Garrison | Garrison Relay disabled 11846 | -8/Garrison | Entered Factory 11846 | -7/Factory | Evolved 2 slots: Propulsion x1, Utility x1 12199 | -7/Factory | Repaired Lyr. Heavy Armor Plating 12524 | -7/Factory | Garrison activated, responded to threat 13022 | -7/Factory | Fabricated Gravity Neutralizing Apparatus? 14246 | -7/Factory | First assault squad dispatched 14682 | -7/Factory | Fabricated Hvy. Ion Cannon (x2) 14765 | -7/Factory | Identified exit to Storage 14765 | -7/Factory | Identified exit to Lower Caves 14797 | -7/Factory | Garrison activated, responded to threat 15056 | -7/Factory | Garrison activated, responded to threat 15098 | -7/Factory | Destroyed 7 combat bots 15117 | -7/Factory | Identified exit to Garrison 15117 | -7/Factory | Entered Garrison 15140 | -7/Garrison | Triggered checkpoint 15206 | -7/Garrison | Triggered checkpoint 15206 | -7/Garrison | Triggered checkpoint 15329 | -7/Garrison | Core integrity fell below 50% 15364 | -7/Garrison | Destroyed 8 combat bots 15365 | -7/Garrison | Lost 7 parts (1p1n3u2w) 15755 | -7/Garrison | Discovered new exit (range 12) 15817 | -7/Garrison | Expanded RIF knowledge: Hotswap 15827 | -7/Garrison | Entered Factory 16027 | -7/Factory | Identified exit to Garrison 16027 | -7/Factory | Entered Garrison 16091 | -7/Garrison | Triggered checkpoint 16359 | -7/Garrison | Triggered checkpoint 16405 | -7/Garrison | Core integrity fell below 20% 16431 | -7/Garrison | Lost 5 parts (1p3n1w) 16539 | -7/Garrison | Identified 8R-AWN's Boregun 16540 | -7/Garrison | Triggered checkpoint 16566 | -7/Garrison | Discovered new exit (range 14) 16570 | -7/Garrison | Identified exit to Factory 16572 | -7/Garrison | Expanded RIF knowledge: Watcher Feeds 16574 | -7/Garrison | Entered Factory 16574 | -6/Factory | Evolved 2 slots: Power x1, Utility x1 17154 | -6/Factory | Self-destructed Last Messages --------------- 17126_ Destroyed Phase Shifter. 17128_ Slug penetrates Door. 17132_ Penetrated by Slug. 17135_ Dropped Lrn. Proton Cannon. 17135_ Penetrated by Slug. 17135_ Remote Datajack destroyed. 17135_ Acquired Lrn. Proton Cannon. 17135_ Slug penetrates Wall. 17135_ Penetrated by Slug. 17139_ Mic. Nuclear Core destroyed. 17141_ Penetrated by Slug. 17144_ VTOL Module destroyed. 17145_ Penetrated by Slug. 17145_ Lrn. Proton Cannon destroyed. 17147_ Penetrated by Slug. 17148_ Fission Core destroyed. 17148_ Penetrated by Slug. 17151_ H-66 Slayer suffers critical hit. 17151_ Destroyed Hvy. Assault Rifle. 17152_ Penetrated by Slug. Map ----- +----------------------------------------------------+ | ?????????????????????????????????????????????????? | | ?????????????????????????????????????????????????? | | ?????????????????????????????????????????????????? | | ?????????????????????????????????????????????????? | | ?????????????????????????????????????????????????? | | ?????????????????????????????????????????????????? | | ?????????????????????????????????????????????????? | | ?????????????????????????????????????????????????? | | ?????????????????????????????????????????????????? | | ?????????????????????????????????????????????????? | | ????????????????#####################????????????? | | ????????????????# ! # #????????????? | | ????????????????# # #????????????? | | ????????????????# # #????????????? | | ????????????????# # ! #????????????? | | ????????????????# #! #????????????? | | ????????????????# # #????????????? | | ???????????????# ###+####????????????? | | ???????????????# + #??########?????? | | ?????????????# ### #??# ] #?????? | | """"????????????# #?# #??#! #?????? | | ??????????# #?# #??# #?????? | | """"""??????????# #?# #??# #?????? | | ???? ?##########;######## #### #?????? | | """""""" ^t h " #?????? | | @ ##############"##?????? | | """""""" h#???????# #?????? | | #???????# #?????? | | #???????# #?????? | | # ##################+###???????# #?????? | | # #????????????????????????????# #?????? | | # #????????????????????????????# #?????? | | # +????????????????????????????# #?????? | | + #????????????????????????????### ###?????? | | # #??????????????????????????????# #???????? | | # #??????????????????????????????# ######### | | # #??????????????????????????????# # | | # #??????????????????????????????# #""" | | # #??????????????????????????????# #""" | | # #??????????????????????????????# #""" | | # #??????????????????????????????# + | | # #??????????????????????????????# #""" | | # #????????????????????########??# #""" | | # #????????????????????# ?# #""" | | # #????????????????????# """"?# # | | # #????????????????????# """"?# ######### | | # #????????????????????#! """" # #???????? | | # ###############??????# """" # #???????? | | # # "########" """" # #???????? | | # # # ##T """" # #??###### | +----------------------------------------------------+ Best States ------------- Heat Dissipation 67 Energy Generation 28 Energy Capacity 1080 Matter Stores 300 Matter Capacity 300 Sight Range 16 Terrain Scan Density 10 Jamming Range 12 Additional Mass Support 24 Armor Coverage 675 Resistance: KI 20 Resistance: EM 15 Evasion (%) 64 Recoil Reduction 3 Offensive Hacking 10 Defensive Hacking 10 Relay Coupler Types 26 Relay Coupler Value 1 Item Schematics ----------------- Med. Storage Unit | -10/Materials | Hacked Lrg. Storage Unit | -9/Materials | Hacked Hcp. Storage Unit | -9/Materials | Hacked Imp. Flight Unit | -9/Materials | Scanalyzed Gravity Neutralizing Apparatus | -7/Factory | Scanalyzed System Shield | -7/Factory | Scanalyzed Rnf. Fission Core | -7/Factory | Scanalyzed Hardcell Cannon | -6/Factory | Hacked Robot Schematics ------------------ None Fabricated ------------ Gravity Neutralizing Apparatus | x1 | -7/Factory Hvy. Ion Cannon | x2 | -7/Factory | Preloaded Alien Tech Used ----------------- None Achievements -------------- None Challenges ------------ None Game ------ Seed InertialDisruptionGenerator Manual? 0 Play Time 02:10:09 Cumulative 240.3 hours Start 2020.10.19 @ 17:24:34 End 2020.10.19 @ 22:55:03 Sessions 3 Manual Loads 0 Difficulty Rogue Special Mode None Game No. 253 Rogue 253 Adventurer 0 Explorer 0 Win Type - Total 2 Types 2/0/0/0/0/0/0/0/0 Lore% 62 Gallery% 77 Achievement% 58 Wizard Run 0 Options --------- ASCII 0 Keyboard 0 Movement Numpad Keybinds 0 Fullscreen 2 Font 24/Terminus Map View 76x50 Tactical HUD 1 Map Filters NONE Filters NONE Steam 1 RUN: 68c902b1-63ec-40cd-b522-d592c4e0ac4e